lending/lending_fUSD_20260310
["ID","MTS","AMOUNT","RATE_DAILY","PERIOD"]
[408087604,1773131432112,-1200.0,0.00014929,2]
[408087605,1773131432122,-289.41620819,0.0001493,2]
[408087606,1773131432132,-300.0,0.00014946,2]
[408087607,1773131432141,-1862.23,0.00014947,2]
[408087608,1773131432151,-1200.0,0.00014997,2]
[408087609,1773131432161,-250.0,0.00015,2]
[408087610,1773131432170,-282.03034762,0.00015,2]
[408087611,1773131432179,-500.0,0.00015,30]
[408087612,1773131432189,-300.0,0.00015309,2]
[408087613,1773131432198,-705.23202128,0.0001531,2]
[408087614,1773131432210,-6741.32797872,0.0001531,2]
[408087615,1773131432220,-6594.12,0.0001531,2]
[408087616,1773131432230,-299.99,0.0001531,2]
[408087617,1773131432239,-17930.59,0.0001531,2]
[408087618,1773131432249,-150.99,0.0001531,2]
[408087619,1773131432258,-9999.99,0.0001531,2]
[408087620,1773131432267,-176.0,0.00015519,2]
[408087621,1773131432277,-389.0,0.00015548,2]
[408087622,1773131432286,-469.0,0.00015594,2]
[408087623,1773131432295,-1497.0,0.00015625,2]
[408087624,1773131432305,-1252.0,0.00015656,2]
[408087625,1773131432314,-1451.352616,0.00015685,7]
[408087626,1773131432324,-205.27305216,0.0001575,2]
[408087627,1773131432333,-184.0,0.0001575,2]
[408087628,1773131432343,-3365.57,0.0001608,2]
[408087629,1773131432352,-1852.42,0.00016084,2]
[408087630,1773131432361,-309.17,0.0001611,2]
[408087631,1773131432371,-18781.42,0.00016114,2]
[408087632,1773131432380,-12055.96848341,0.0001615,2]
[408087633,1773131432390,-600.0,0.0001628,2]
[408087634,1773131432399,-300.0,0.0001628,2]
[408087635,1773131432409,-500.0,0.0001628,2]
[408087636,1773131432418,-500.0,0.00016287,2]
[408087637,1773131432427,-194.57847078,0.00016287,2]
[408087638,1773131432437,-600.0,0.00016287,2]
[408087639,1773131432446,-300.0,0.00016294,2]
[408087640,1773131432455,-5000.0,0.00016366,2]
[408087641,1773131432464,-600.0,0.00016366,2]
[408087642,1773131432473,-193.0,0.00016366,2]
[408087643,1773131432483,-300.0,0.00016366,2]
[408087644,1773131432492,-250.0,0.00016385,2]
[408087645,1773131432502,-585.01811707,0.00016385,2]
[408087646,1773131432511,-741.0,0.00016413,2]
[408087647,1773131432522,-1680.0,0.00016422,2]
[408087648,1773131432532,-510.0,0.00016427,2]
[408087649,1773131432542,-1269.27,0.00016466,2]
[408087650,1773131432551,-500.0,0.0001649,2]
[408087651,1773131432562,-500.0,0.0001649,2]
[408087652,1773131432571,-500.0,0.0001649,2]
[408087653,1773131432597,-500.0,0.0001649,2]
[408087654,1773131432615,-500.0,0.0001649,2]
[408087655,1773131432638,-500.0,0.0001649,2]
[408087656,1773131432658,-500.0,0.0001649,2]
[408087657,1773131432672,-200.0,0.0001649,2]
[408087658,1773131432693,-500.0,0.0001649,2]
[408087659,1773131432713,-500.0,0.0001649,2]
[408087660,1773131432730,-500.0,0.0001649,2]
[408087661,1773131432751,-500.0,0.0001649,2]
[408087662,1773131432769,-500.0,0.0001649,2]
[408087663,1773131432792,-500.0,0.0001649,2]
[408087664,1773131432810,-151.0,0.0001649,2]
[408087665,1773131432823,-500.0,0.0001649,2]
[408087666,1773131432844,-151.0,0.0001649,2]
[408087667,1773131432860,-500.0,0.0001649,2]
[408087668,1773131432879,-151.0,0.0001649,2]
[408087669,1773131432892,-500.0,0.0001649,2]
[408087670,1773131432922,-151.0,0.0001649,2]
[408087671,1773131432941,-151.0,0.0001649,2]
[408087672,1773131432959,-500.0,0.0001649,2]
[408087673,1773131432976,-151.0,0.0001649,2]
[408087674,1773131432994,-151.0,0.0001649,2]
[408087675,1773131433011,-151.0,0.0001649,2]
[408087676,1773131433027,-500.0,0.0001649,2]
[408087677,1773131433044,-151.0,0.0001649,2]
[408087678,1773131433061,-151.0,0.0001649,2]
[408087679,1773131433078,-151.0,0.0001649,2]
[408087680,1773131433095,-151.0,0.0001649,2]
[408087681,1773131433112,-151.0,0.0001649,2]
[408087682,1773131433128,-500.0,0.0001649,2]
[408087683,1773131433144,-500.0,0.0001649,2]
[408087684,1773131433160,-500.0,0.0001649,2]
[408087685,1773131433176,-500.0,0.0001649,2]
[408087686,1773131433192,-500.0,0.0001649,2]
[408087687,1773131433208,-500.0,0.0001649,2]
[408087688,1773131433223,-151.0,0.0001649,2]
[408087689,1773131433240,-151.0,0.0001649,2]
[408087690,1773131433257,-151.0,0.0001649,2]
[408087691,1773131433273,-151.0,0.0001649,2]
[408087692,1773131433290,-151.0,0.0001649,2]
[408087693,1773131433310,-151.0,0.0001649,2]
[408087694,1773131433327,-151.0,0.0001649,2]
[408087695,1773131433343,-151.0,0.0001649,2]
[408087696,1773131433361,-151.0,0.0001649,2]
[408087697,1773131433377,-151.0,0.0001649,2]
[408087698,1773131433393,-151.0,0.0001649,2]
[408087699,1773131433409,-151.0,0.0001649,2]
[408087700,1773131433426,-151.0,0.0001649,2]
[408087701,1773131433442,-151.0,0.0001649,2]
[408087702,1773131433459,-151.0,0.0001649,2]
[408087703,1773131433475,-151.0,0.0001649,2]
[408087704,1773131433491,-151.0,0.0001649,2]
[408087705,1773131433507,-151.0,0.0001649,2]
[408087706,1773131433526,-151.0,0.0001649,2]
[408087707,1773131433542,-151.0,0.0001649,2]
[408087708,1773131433557,-3823.69078386,0.00016503,2]
[408087709,1773131433577,-2872.03952543,0.00016503,2]
[408087710,1773131433628,-928.17378698,0.00016503,2]
[408087715,1773131438119,-1437.67372447,0.00016503,2]
[408087716,1773131438131,-5018.31849133,0.00016503,2]
[408087717,1773131438142,-1498.35368793,0.00016503,2]
[408087718,1773131438151,-640.3340267,0.00016511,3]
[408087719,1773131438160,-152.0,0.00016511,3]
[408087720,1773131438170,-3733.47,0.0001652,2]
[408087721,1773131438179,-500.0,0.0001674,2]
[408087722,1773131438188,-272.31,0.00016797,2]
[408087723,1773131438198,-500.0,0.00016999,2]
[408087724,1773131438207,-500.0,0.00016999,2]
[408087725,1773131438216,-300.0,0.00017,2]
[408087726,1773131438226,-504.0,0.00017,2]
[408087727,1773131438236,-309.17,0.00017005,2]
[408087728,1773131438245,-356.47,0.00017023,2]
[408087729,1773131438255,-200.0,0.00017038,2]
[408087730,1773131438264,-152.0,0.0001733,4]
[408087731,1773131438274,-4000.0,0.00017487,2]
[408087732,1773131438284,-200.0,0.00017586,2]
[408087733,1773131438293,-1244.76791127,0.00017614,2]
[408087734,1773131438303,-152.73,0.00017687,2]
[408087735,1773131438312,-1600.0,0.00017687,2]
[408087736,1773131438323,-200.0,0.00017687,2]
[408087737,1773131438332,-1419.54,0.00017687,2]
[408087738,1773131438342,-1500.0,0.00017687,2]
[408087739,1773131438352,-500.0,0.00017726,2]
[408087740,1773131438362,-309.17,0.000179,2]
[408087741,1773131438372,-571.14105569,0.0001792,2]
[408087742,1773131438381,-4000.0,0.00017925,2]
[408087743,1773131438390,-150.0,0.00017951,2]
[408087744,1773131438399,-6753.0028,0.00017951,2]
[408087745,1773131438409,-2308.04093616,0.00017951,2]
[408087746,1773131438419,-500.0,0.00018043,2]
[408087747,1773131438429,-563.66926922,0.00018043,2]
[408087748,1773131438438,-500.0,0.00018043,2]
[408087749,1773131438448,-18421.97840436,0.00018044,2]
[408087750,1773131438458,-2351.0,0.00018064,2]
[408087751,1773131438467,-200.0,0.00018134,2]
[408087752,1773131438477,-152.0,0.00018149,5]
[408087753,1773131438488,-2308.04093608,0.00018164,2]
[408087754,1773131438498,-6479.58045541,0.00018318,2]
[408087756,1773131438507,-500.0,0.00018325,7]
[408087758,1773131438520,-500.0,0.00018325,7]
[408087760,1773131438531,-700.0,0.00018325,7]
[408087762,1773131438540,-4000.0,0.00018362,2]
[408087763,1773131438549,-2308.04093608,0.00018378,2]
[408087766,1773131438559,-356.47,0.00018393,2]
[408087768,1773131438568,-504.0,0.00018465,3]
[408087769,1773131438578,-372.67029126,0.00018521,2]
[408087771,1773131438588,-1000.0,0.0001856,2]
[408087773,1773131438599,-1500.0,0.0001856,2]
[408087775,1773131438608,-562.31740002,0.0001856,2]
[408087777,1773131438617,-500.0,0.0001856,2]
[408087779,1773131438627,-174.61919141,0.0001856,2]
[408087781,1773131438636,-200.0,0.0001856,2]
[408087782,1773131438645,-2308.04093608,0.00018591,2]
[408087783,1773131438655,-150.0,0.00018619,2]
[408087785,1773131438665,-152.47309865,0.00018619,2]
[408087786,1773131438675,-500.0,0.00018619,2]
[408087787,1773131438684,-150.0,0.00018619,2]
[408087788,1773131438694,-150.0,0.00018619,2]
[408087789,1773131438703,-150.0,0.00018619,2]
[408087790,1773131438713,-150.0,0.00018619,2]
[408087791,1773131438723,-210.72360178,0.00018619,2]
[408087792,1773131438733,-250.0,0.00018672,2]
[408087793,1773131438742,-150.0,0.00018674,2]
[408087794,1773131438753,-500.0,0.00018674,2]
[408087795,1773131438762,-150.0,0.00018674,2]
[408087796,1773131438772,-187.38563793,0.00018674,2]
[408087797,1773131438781,-200.0,0.00018682,2]
[408087798,1773131438790,-761.0,0.00018685,7]
[408087799,1773131438799,-761.0,0.00018685,7]
[408087800,1773131438809,-761.0,0.00018685,7]
[408087801,1773131438817,-761.0,0.00018685,7]
[408087802,1773131438827,-2500.0,0.00018699,2]
[408087803,1773131438836,-2834.0,0.0001872,2]
[408087804,1773131438846,-200.0,0.00018729,2]
[408087805,1773131438855,-555.02309915,0.00018729,2]
[408087806,1773131438865,-200.0,0.00018729,2]
[408087807,1773131438875,-309.17,0.00018795,2]
[408087808,1773131438884,-20597.0279,0.00018799,2]
[408087809,1773131438893,-4000.0,0.00018799,2]
[408087810,1773131438901,-2308.04093608,0.00018805,2]
[408087811,1773131438910,-160.0,0.00018817,2]
[408087812,1773131438919,-1814.19077,0.00018823,7]
[408087813,1773131438928,-481.42,0.00018843,2]
[408087814,1773131438937,-489.88,0.00018843,2]
[408087815,1773131438946,-489.87,0.00018843,2]
[408087816,1773131438955,-489.89483843,0.00018843,2]
[408087817,1773131438964,-761.0,0.00018959,7]
[408087818,1773131438972,-761.0,0.00018959,7]
[408087819,1773131438982,-152.0,0.00018967,6]
[408087820,1773131438991,-2308.04093608,0.00019018,2]
[408087821,1773131439000,-685.9,0.00019106,2]
[408087822,1773131439008,-1000.0,0.00019108,2]
[408087823,1773131439017,-162.52306317,0.00019108,2]
[408087824,1773131439026,-200.0,0.00019108,2]
[408087825,1773131439035,-315.0,0.00019142,2]
[408087826,1773131439044,-787.0,0.00019178,2]
[408087827,1773131439053,-250.0,0.00019178,2]
[408087828,1773131439062,-217.73,0.00019179,2]
[408087829,1773131439071,-272.31,0.00019179,2]
[408087830,1773131439081,-179.12,0.0001918,2]
[408087831,1773131439089,-166.67,0.00019181,2]
[408087832,1773131439098,-159.99163251,0.00019205,2]
[408087833,1773131439108,-151.0,0.00019229,2]
[408087834,1773131439117,-200.0,0.0001923,2]
[408087835,1773131439126,-2308.04093608,0.00019232,2]
[408087836,1773131439135,-761.0,0.00019233,7]
[408087837,1773131439144,-761.0,0.00019233,7]
[408087838,1773131439153,-4000.0,0.00019236,2]
[408087839,1773131439163,-315.0,0.00019279,2]
[408087840,1773131439172,-200.0,0.000193,7]
[408087841,1773131439180,-500.0,0.00019313,2]
[408087842,1773131439190,-2009.56284127,0.00019313,2]
[408087843,1773131439200,-168.0,0.00019335,2]
[408087844,1773131439210,-1207.13,0.00019339,2]
[408087845,1773131439219,-568.0,0.00019365,2]
[408087846,1773131439228,-150.0,0.00019365,2]
[408087847,1773131439238,-150.0,0.00019365,2]
[408087848,1773131439247,-150.0,0.00019365,2]
[408087849,1773131439258,-158.0,0.00019365,2]
[408087850,1773131439267,-431.0,0.00019371,2]
[408087851,1773131439276,-1004.397,0.00019379,2]
[408087852,1773131439285,-400.0,0.000194,7]
[408087853,1773131439294,-641.08009334,0.00019411,2]
[408087854,1773131439303,-500.0,0.00019421,7]
[408087855,1773131439312,-700.0,0.00019421,7]
[408087856,1773131439322,-159.99163252,0.00019425,2]
[408087857,1773131439331,-159.99163251,0.00019425,2]
[408087858,1773131439341,-159.99163251,0.00019425,2]
[408087859,1773131439350,-159.99163251,0.00019425,2]
[408087860,1773131439359,-2308.04093608,0.00019445,2]
[408087861,1773131439368,-500.0,0.00019474,2]
[408087862,1773131439378,-500.0,0.00019474,2]
[408087863,1773131439387,-500.0,0.00019474,2]
[408087864,1773131439396,-500.0,0.00019474,2]
[408087865,1773131439406,-502.14275911,0.00019474,2]
[408087866,1773131439415,-500.0,0.00019474,2]
[408087867,1773131439425,-223.32,0.00019474,2]
[408087868,1773131439434,-690.0,0.00019495,2]
[408087869,1773131439444,-600.0,0.000195,7]
[408087870,1773131439453,-761.0,0.00019507,7]
[408087871,1773131439462,-761.0,0.00019507,7]
[408087872,1773131439471,-223.29917506,0.00019554,2]
[408087873,1773131439481,-3229.5306877,0.0001956,2]
[408087874,1773131439490,-217.73,0.00019564,2]
[408087875,1773131439499,-272.31,0.00019564,2]
[408087876,1773131439508,-179.12,0.00019565,2]
[408087877,1773131439519,-345715.3148,0.00019571,2]
[408087878,1773131439530,-151.0,0.00019571,2]
[408087879,1773131439540,-151.0,0.00019571,2]
[408087880,1773131439551,-186.493858,0.00019571,2]
[408087881,1773131439562,-186.493858,0.00019571,2]
[408087882,1773131439573,-186.493858,0.00019571,2]
[408087883,1773131439583,-186.493858,0.00019571,2]
[408087884,1773131439596,-162.949211,0.00019571,2]
[408087885,1773131439606,-232.255449,0.00019571,2]
[408087886,1773131439615,-151.0,0.00019571,2]
[408087887,1773131439625,-232.255449,0.00019571,2]
[408087888,1773131439634,-232.255449,0.00019571,2]
[408087889,1773131439644,-232.255449,0.00019571,2]
[408087890,1773131439653,-151.0,0.00019571,2]
[408087891,1773131439665,-151.0,0.00019571,2]
[408087892,1773131439675,-151.0,0.00019571,2]
[408087893,1773131439685,-151.0,0.00019571,2]
[408087894,1773131439695,-253.548355,0.00019571,2]
[408087895,1773131439704,-253.548355,0.00019571,2]
[408087896,1773131439715,-718.616818,0.00019571,2]
[408087897,1773131439726,-253.548355,0.00019571,2]
[408087898,1773131439736,-151.0,0.00019571,2]
[408087899,1773131439747,-718.616818,0.00019571,2]
[408087900,1773131439758,-253.548355,0.00019571,2]
[408087901,1773131439770,-169.36279,0.00019571,2]
[408087902,1773131439781,-718.616818,0.00019571,2]
[408087904,1773131439790,-718.616818,0.00019571,2]
[408087905,1773131439800,-151.0,0.00019571,2]
[408087906,1773131439810,-151.0,0.00019571,2]
[408087907,1773131439821,-151.0,0.00019571,2]
[408087908,1773131439830,-151.0,0.00019571,2]
[408087909,1773131439840,-151.0,0.00019571,2]
[408087910,1773131439849,-151.0,0.00019571,2]
[408087911,1773131439858,-151.0,0.00019571,2]
[408087912,1773131439868,-151.0,0.00019571,2]
[408087913,1773131439877,-178.129445,0.00019571,2]
[408087914,1773131439886,-180.239223,0.00019571,2]
[408087915,1773131439896,-177.350682,0.00019571,2]
[408087916,1773131439907,-180.239223,0.00019571,2]
[408087917,1773131439916,-177.350682,0.00019571,2]
[408087918,1773131439926,-180.239223,0.00019571,2]
[408087919,1773131439936,-177.350682,0.00019571,2]
[408087920,1773131439947,-180.239223,0.00019571,2]
[408087921,1773131439956,-177.350682,0.00019571,2]
[408087922,1773131439967,-152.497116,0.00019571,2]
[408087923,1773131439978,-151.0,0.00019571,2]
[408087924,1773131439987,-238.811072,0.00019571,2]
[408087925,1773131439996,-1064.612981,0.00019571,2]
[408087926,1773131440006,-151.0,0.00019571,2]
[408087927,1773131440015,-1064.612981,0.00019571,2]
[408087928,1773131440024,-278.687678,0.00019571,2]
[408087929,1773131440033,-1064.612981,0.00019571,2]
[408087930,1773131440042,-151.0,0.00019571,2]
[408087931,1773131440051,-1861.547374,0.00019571,2]
[408087932,1773131440063,-278.687678,0.00019571,2]
[408087933,1773131440073,-1064.612981,0.00019571,2]
[408087934,1773131440082,-1861.547374,0.00019571,2]
[408087935,1773131440092,-421.763913,0.00019571,2]
[408087936,1773131440102,-278.687678,0.00019571,2]
[408087937,1773131440112,-892.11,0.00019571,2]
[408087938,1773131440121,-1861.547374,0.00019571,2]
[408087939,1773131440130,-278.687678,0.00019571,2]
[408087940,1773131440139,-421.763913,0.00019571,2]
[408087941,1773131440149,-1861.547374,0.00019571,2]
[408087942,1773131440158,-421.763913,0.00019571,2]
[408087943,1773131440168,-230.880756,0.00019571,2]
[408087944,1773131440177,-421.763913,0.00019571,2]
[408087945,1773131440187,-193.160826,0.00019571,2]
[408087946,1773131440196,-207.708668,0.00019571,2]
[408087947,1773131440206,-151.0,0.00019571,2]
[408087948,1773131440215,-843.296776,0.00019571,2]
[408087949,1773131440224,-843.296776,0.00019571,2]
[408087950,1773131440233,-843.296776,0.00019571,2]
[408087952,1773131440243,-843.296776,0.00019571,2]
[408087954,1773131440253,-151.0,0.00019571,2]
[408087955,1773131440262,-151.0,0.00019571,2]
[408087957,1773131440271,-151.0,0.00019571,2]
[408087958,1773131440282,-151.0,0.00019571,2]
[408087959,1773131440290,-151.0,0.00019571,2]
[408087960,1773131440300,-228.371361,0.00019571,2]
[408087961,1773131440309,-913.201404,0.00019571,2]
[408087962,1773131440322,-228.371361,0.00019571,2]
[408087963,1773131440332,-913.201404,0.00019571,2]
[408087964,1773131440341,-228.371361,0.00019571,2]
[408087965,1773131440353,-913.201404,0.00019571,2]
[408087966,1773131440363,-228.371361,0.00019571,2]
[408087967,1773131440373,-913.201404,0.00019571,2]
[408087969,1773131440383,-151.0,0.00019571,2]
[408087970,1773131440392,-151.0,0.00019571,2]
[408087971,1773131440401,-995.518115,0.00019571,2]
[408087972,1773131440411,-995.518115,0.00019571,2]
[408087973,1773131440422,-995.518115,0.00019571,2]
[408087974,1773131440431,-995.518115,0.00019571,2]
[408087975,1773131440442,-151.0,0.00019571,2]
[408087976,1773131440451,-670.859791,0.00019571,2]
[408087977,1773131440464,-162.671328,0.00019571,2]
[408087978,1773131440474,-5159.15632,0.00019571,2]
[408087979,1773131440483,-5159.15632,0.00019571,2]
[408087980,1773131440494,-5159.15632,0.00019571,2]
[408087981,1773131440503,-5159.15632,0.00019571,2]
[408087982,1773131440513,-159.195226,0.00019571,2]
[408087983,1773131440526,-151.0,0.00019571,2]
[408087984,1773131440538,-232.832187,0.00019571,2]
[408087985,1773131440554,-151.0,0.00019571,2]
[408087986,1773131440566,-226.891902,0.00019571,2]
[408087987,1773131440577,-151.0,0.00019571,2]
[408087988,1773131440589,-151.00002,0.00019571,2]
[408087989,1773131440600,-154.590496,0.00019571,2]
[408087990,1773131440611,-296.502501,0.00019571,2]
[408087991,1773131440620,-296.502501,0.00019571,2]
[408087992,1773131440630,-296.502501,0.00019571,2]
[408087993,1773131440640,-296.502501,0.00019571,2]
[408087994,1773131440654,-151.0,0.00019571,2]
[408087995,1773131440666,-730.476026,0.00019571,2]
[408087996,1773131440678,-730.476026,0.00019571,2]
[408087997,1773131440689,-152.757277,0.00019571,2]
[408087998,1773131440698,-151.0,0.00019571,2]
[408087999,1773131440708,-511.427712,0.00019571,2]
[408088000,1773131440717,-730.476026,0.00019571,2]
[408088001,1773131440726,-155.903725,0.00019571,2]
[408088002,1773131440736,-511.427712,0.00019571,2]
[408088003,1773131440749,-730.476026,0.00019571,2]
[408088004,1773131440758,-374.525594,0.00019571,2]
[408088005,1773131440768,-511.427712,0.00019571,2]
[408088006,1773131440780,-374.525594,0.00019571,2]
[408088007,1773131440790,-511.427712,0.00019571,2]
[408088008,1773131440801,-374.525594,0.00019571,2]
[408088009,1773131440812,-840.757469,0.00019571,2]
[408088010,1773131440824,-374.525594,0.00019571,2]
[408088011,1773131440836,-840.757469,0.00019571,2]
[408088012,1773131440846,-3694.167787,0.00019571,2]
[408088013,1773131440856,-840.757469,0.00019571,2]
[408088014,1773131440867,-3694.167787,0.00019571,2]
[408088015,1773131440876,-3694.167787,0.00019571,2]
[408088016,1773131440886,-3694.167787,0.00019571,2]
[408088017,1773131440895,-840.757469,0.00019571,2]
[408088018,1773131440907,-597.550008,0.00019571,2]
[408088019,1773131440917,-597.550008,0.00019571,2]
[408088020,1773131440928,-597.550008,0.00019571,2]
[408088021,1773131440938,-597.550008,0.00019571,2]
[408088022,1773131440952,-954.244289,0.00019571,2]
[408088023,1773131440965,-954.244289,0.00019571,2]
[408088024,1773131440975,-954.244289,0.00019571,2]
[408088025,1773131440986,-151.0,0.00019571,2]
[408088026,1773131440997,-954.244289,0.00019571,2]
[408088027,1773131441008,-151.0,0.00019571,2]
[408088028,1773131441018,-151.0,0.00019571,2]
[408088029,1773131441029,-151.0,0.00019571,2]
[408088030,1773131441040,-151.0,0.00019571,2]
[408088031,1773131441050,-151.0,0.00019571,2]
[408088033,1773131441060,-151.0,0.00019571,2]
[408088035,1773131441070,-2730.13669,0.00019571,2]
[408088037,1773131441079,-151.000024,0.00019571,2]
[408088039,1773131441089,-2730.13669,0.00019571,2]
[408088041,1773131441099,-151.0,0.00019571,2]
[408088043,1773131441111,-2730.13669,0.00019571,2]
[408088044,1773131441122,-163.203635,0.00019571,2]
[408088045,1773131441132,-2730.13669,0.00019571,2]
[408088046,1773131441148,-151.0,0.00019571,2]
[408088047,1773131441159,-151.0,0.00019571,2]
[408088048,1773131441169,-151.0,0.00019571,2]
[408088049,1773131441181,-648.908861,0.00019571,2]
[408088050,1773131441193,-151.0,0.00019571,2]
[408088051,1773131441203,-648.908861,0.00019571,2]
[408088052,1773131441477,-648.908861,0.00019571,2]
[408088053,1773131441487,-151.0,0.00019571,2]
[408088054,1773131441496,-648.908861,0.00019571,2]
[408088055,1773131441505,-151.0,0.00019571,2]
[408088056,1773131441516,-151.0,0.00019571,2]
[408088057,1773131441530,-161.77012,0.00019571,2]
[408088058,1773131441540,-258.676033,0.00019571,2]
[408088059,1773131441550,-151.0,0.00019571,2]
[408088060,1773131441561,-151.0,0.00019571,2]
[408088061,1773131441570,-151.0,0.00019571,2]
[408088062,1773131441580,-168.0,0.00019574,2]
[408088063,1773131441589,-800.0,0.00019582,2]
[408088064,1773131441599,-1280.0,0.00019589,2]
[408088065,1773131441610,-922.0,0.00019589,2]
[408088066,1773131441619,-1213.0,0.00019589,2]
[408088067,1773131441629,-619.0,0.00019589,2]
[408088068,1773131441638,-2461.0,0.00019589,2]
[408088069,1773131441647,-227.59485,0.00019589,2]
[408088070,1773131441656,-2730.13669,0.00019589,2]
[408088071,1773131441666,-2730.13669,0.00019589,2]
[408088072,1773131441676,-151.0,0.00019589,2]
[408088073,1773131441686,-2730.13669,0.00019589,2]
[408088074,1773131441696,-2730.13669,0.00019589,2]
[408088075,1773131441706,-182.333485,0.00019589,2]
[408088076,1773131441716,-280.43701,0.00019589,2]
[408088077,1773131441727,-151.0,0.00019589,2]
[408088078,1773131441741,-648.908861,0.00019589,2]
[408088079,1773131441751,-648.908861,0.00019589,2]
[408088080,1773131441760,-151.0,0.00019589,2]
[408088081,1773131441769,-648.908861,0.00019589,2]
[408088082,1773131441779,-648.908861,0.00019589,2]
[408088083,1773131441788,-151.0,0.00019589,2]
[408088084,1773131441797,-151.0,0.00019589,2]
[408088085,1773131441806,-151.0,0.00019589,2]
[408088086,1773131441815,-155.011141,0.00019589,2]
[408088087,1773131441824,-715.0,0.000196,2]
[408088088,1773131441833,-900.0,0.000196,7]
[408088089,1773131441843,-304.0,0.000196,2]
[408088090,1773131441852,-994.0,0.000196,2]
[408088091,1773131441861,-3229.5306877,0.00019605,2]
[408088092,1773131441871,-162.14799,0.0001961,2]
[408088093,1773131441880,-162.14799,0.0001961,2]
[408088094,1773131441892,-159.99163251,0.00019616,2]
[408088095,1773131441903,-1534.81209999,0.0001963,2]
[408088096,1773131441913,-151.0,0.0001963,2]
[408088097,1773131441923,-296.502501,0.0001963,2]
[408088098,1773131441934,-296.502501,0.0001963,2]
[408088099,1773131441944,-296.502501,0.0001963,2]
[408088100,1773131441954,-296.502501,0.0001963,2]
[408088101,1773131441964,-151.0,0.0001963,2]
[408088102,1773131441974,-730.476026,0.0001963,2]
[408088103,1773131441984,-730.476026,0.0001963,2]
[408088104,1773131441993,-211.404821,0.0001963,2]
[408088105,1773131442002,-511.427712,0.0001963,2]
[408088106,1773131442012,-730.476026,0.0001963,2]
[408088107,1773131442022,-511.427712,0.0001963,2]
[408088108,1773131442031,-730.476026,0.0001963,2]
[408088109,1773131442041,-374.525594,0.0001963,2]
[408088110,1773131442051,-511.427712,0.0001963,2]
[408088111,1773131442060,-374.525594,0.0001963,2]
[408088112,1773131442069,-511.427712,0.0001963,2]
[408088113,1773131442079,-374.525594,0.0001963,2]
[408088114,1773131442088,-840.757469,0.0001963,2]
[408088115,1773131442097,-374.525594,0.0001963,2]
[408088116,1773131442106,-840.757469,0.0001963,2]
[408088117,1773131442115,-3694.167787,0.0001963,2]
[408088118,1773131442124,-840.757469,0.0001963,2]
[408088119,1773131442134,-3694.167787,0.0001963,2]
[408088120,1773131442143,-3694.167787,0.0001963,2]
[408088121,1773131442152,-3694.167787,0.0001963,2]
[408088122,1773131442162,-840.757469,0.0001963,2]
[408088123,1773131442171,-597.550008,0.0001963,2]
[408088124,1773131442180,-597.550008,0.0001963,2]
[408088125,1773131442189,-597.550008,0.0001963,2]
[408088126,1773131442199,-597.550008,0.0001963,2]
[408088127,1773131442208,-954.244289,0.0001963,2]
[408088128,1773131442217,-954.244289,0.0001963,2]
[408088129,1773131442226,-954.244289,0.0001963,2]
[408088130,1773131442236,-954.244289,0.0001963,2]
[408088131,1773131442246,-289.705001,0.0001963,2]
[408088132,1773131442256,-151.0,0.0001963,2]